bitfinex-derivatives/quotes_SOLF0:USTF0_20241212
["timestamp","ask_amount","ask_price","bid_price","bid_amount"]
[1734034732953,95.34611,227.89,227.78,2.68]
[1734034734361,2.1946,227.8,227.78,2.68]
[1734034734954,95.34611,227.89,227.78,2.68]
[1734034735157,2.1946,227.79,227.78,2.68]
[1734034735356,10.13587207,227.85,227.75,2.68]
[1734034735558,4.7707,227.84,227.73,2.68]
[1734034735754,4.7707,227.84,227.7,55.79587207]
[1734034735755,10.13587207,227.82,227.7,10.13587207]
[1734034735962,10.13587207,227.82,227.71,2.68]
[1734034736164,2.1952,227.73,227.7,10.13587207]
[1734034736363,2.1952,227.73,227.7,12.81587207]
[1734034737566,10.13587207,227.82,227.7,12.81587207]
[1734034737567,2.1954,227.72,227.7,2.68]
[1734034737963,12.81587207,227.82,227.7,2.68]
[1734034738165,2.1954,227.71,227.7,2.68]
[1734034738563,12.81587207,227.82,227.7,2.68]
[1734034738761,2.1952,227.73,227.7,2.68]
[1734034739367,2.1949,227.77,227.72,2.1953]
[1734034739770,2.68,227.82,227.72,2.1953]
[1734034740268,2.1945,227.81,227.72,2.1953]
[1734034740467,4.7707,227.84,227.72,2.1953]
[1734034740863,5.14024743,227.82,227.7,4.8754]
[1734034741064,15.2761195,227.82,227.7,2.68]
[1734034741570,15.2761195,227.82,227.7,4.8754]
[1734034742165,4.7707,227.84,227.72,10.13587207]
[1734034742568,2.1945,227.81,227.72,10.13587207]
[1734034742769,10.1586575,227.84,227.73,2.1951]
[1734034743268,4.7707,227.84,227.75,10.13587207]
[1734034743463,4.7707,227.84,227.76,2.68]
[1734034743667,2.3284,227.87,227.79,10.13587207]
[1734034744470,2.1941,227.85,227.8,2.1945]
[1734034745483,2.1941,227.85,227.79,10.13587207]
[1734034745484,2.1941,227.85,227.81,2.1944]
[1734034745871,2.1942,227.84,227.79,10.13587207]
[1734034746076,5.39579781,227.92,227.79,10.13587207]
[1734034746581,2.1941,227.85,227.8,2.1945]
[1734034747674,2.194,227.86,227.81,2.1943]
[1734034747874,5.39579781,227.92,227.82,2.68]
[1734034748274,2.194,227.86,227.82,2.68]
[1734034748483,17.06847207,227.93,227.82,2.68]
[1734034748877,2.194,227.86,227.82,2.68]
[1734034749385,2.194,227.86,227.83,5.32559786]
[1734034749686,2.194,227.86,227.82,4.8743]
[1734034749889,2.194,227.86,227.83,5.32558682]
[1734034750078,2.1941,227.85,227.82,2.68]
[1734034750278,22.40770435,227.93,227.83,5.32878743]
[1734034750478,10.13587207,227.9,227.82,2.68]
[1734034750781,10.13587207,227.9,227.78,2.68]
[1734034751081,10.13587207,227.9,227.79,5.3292623]
[1734034751291,10.13587207,227.9,227.8,5.3292623]
[1734034751587,2.1943,227.83,227.78,4.8747]
[1734034751778,2.1943,227.83,227.79,5.33209372]
[1734034751978,22.40770435,227.93,227.8,5.33209372]
[1734034752181,22.40770435,227.93,227.81,5.33425802]
[1734034752387,22.40770435,227.93,227.82,5.33425802]
[1734034752581,22.40770435,227.93,227.83,5.33456426]
[1734034752781,22.40770435,227.93,227.84,5.33456426]
[1734034752979,6.9326,227.93,227.82,10.13587207]
[1734034753182,6.9326,227.93,227.83,5.3344176]
[1734034753379,6.9326,227.93,227.84,8.0144176]
[1734034753583,97.53981,227.89,227.85,7.5284176]
[1734034753786,97.53981,227.89,227.86,5.3344176]
[1734034753993,97.53981,227.89,227.87,5.3344176]
[1734034754186,95.34611,227.89,227.88,5.3344176]
[1734034755390,97.53981,227.89,227.88,5.3344176]
[1734034755687,97.53981,227.89,227.84,2.68]
[1734034755688,95.34611,227.89,227.84,2.68]
[1734034755891,95.34611,227.89,227.85,5.33631306]
[1734034756188,95.34611,227.89,227.79,12.81587207]
[1734034756396,95.34611,227.89,227.8,5.33838528]
[1734034756596,95.34611,227.89,227.81,5.33838528]
[1734034756797,95.34611,227.89,227.79,12.81587207]
[1734034756989,95.34611,227.89,227.8,5.33833262]
[1734034757294,95.34611,227.89,227.81,5.33833262]
[1734034757598,95.34611,227.89,227.82,5.33833262]
[1734034757599,2.1942,227.84,227.82,5.33833262]
[1734034757794,2.1942,227.84,227.83,5.33833262]
[1734034760201,2.1945,227.81,227.8,2.68]
[1734034760401,95.34611,227.89,227.8,7.9828573]
[1734034760590,95.34611,227.89,227.81,5.3028573]
[1734034760792,95.34611,227.89,227.82,5.3028573]
[1734034761011,95.34611,227.89,227.8,2.68]
[1734034761296,95.34611,227.89,227.81,5.30287151]
[1734034761498,95.34611,227.89,227.76,2.1948]
[1734034761803,95.34611,227.89,227.77,7.98301304]
[1734034761999,95.34611,227.89,227.78,5.30301304]
[1734034762304,95.34611,227.89,227.77,2.68]
[1734034762305,95.34611,227.89,227.79,5.30301304]
[1734034762494,95.34611,227.89,227.8,5.30301304]
[1734034762707,95.34611,227.89,227.77,2.68]
[1734034762998,95.34611,227.89,227.78,5.30321831]
[1734034763194,2.1946,227.8,227.78,5.30321831]
[1734034763396,2.1946,227.8,227.79,5.30321831]
[1734034763791,2.1946,227.8,227.77,2.68]
[1734034764191,12.33047207,227.8,227.69,6.09462488]
[1734034764403,10.13587207,227.77,227.66,41.87518398]
[1734034764595,2.68,227.76,227.67,10.46881776]
[1734034764791,2.1957,227.68,227.67,10.46881776]
[1734034764992,2.1957,227.68,227.64,12.33187207]
[1734034765305,10.13587207,227.77,227.64,10.13587207]
[1734034765306,2.68,227.74,227.64,10.13587207]
[1734034765492,2.1957,227.68,227.64,10.13587207]
[1734034765697,2.68,227.74,227.64,10.13587207]
[1734034765896,10.13587207,227.77,227.64,15.4014532]
[1734034766098,2.1955,227.71,227.64,15.4014532]
[1734034766293,2.68,227.77,227.67,10.13587207]
[1734034766703,2.1953,227.72,227.67,12.33167207]
[1734034767094,2.68,227.77,227.67,10.13587207]
[1734034767294,2.1955,227.7,227.67,10.13587207]
[1734034767503,2.2429,227.79,227.67,10.13587207]
[1734034767799,2.68,227.78,227.67,10.13587207]
[1734034768506,2.1953,227.73,227.68,2.1956]
[1734034769702,2.68,227.78,227.68,2.1956]
[1734034770509,2.68,227.78,227.67,12.33167207]
[1734034770807,2.68,227.78,227.67,10.13587207]
[1734034771208,2.1953,227.72,227.67,12.33167207]
[1734034772907,2.1953,227.72,227.68,2.1957]
[1734034774314,2.1953,227.72,227.67,12.33167207]
[1734034775309,2.1953,227.72,227.7,6.51900146]
[1734034776012,4.9229,227.79,227.7,6.51900146]
[1734034776215,4.9229,227.79,227.73,6.51900146]
[1734034776609,2.2429,227.79,227.73,6.51900146]
[1734034776810,2.2429,227.79,227.75,6.51900146]
[1734034777314,2.1949,227.77,227.75,6.51900146]
[1734034777515,10.86740146,227.82,227.75,6.51900146]
[1734034779012,8.73330146,227.82,227.75,6.51900146]
[1734034779810,4.3997,227.87,227.78,6.51900146]
[1734034780018,9.19900146,227.86,227.78,6.51900146]
[1734034780815,2.1945,227.81,227.78,6.51900146]
[1734034781014,9.19900146,227.86,227.78,6.51900146]
[1734034781215,2.68,227.86,227.76,2.1948]
[1734034781416,4.3997,227.87,227.76,2.1948]
[1734034781714,7.0797,227.87,227.76,2.1948]
[1734034781915,7.0797,227.87,227.75,10.17851325]
[1734034782115,2.1944,227.82,227.77,2.1948]
[1734034782619,2.1944,227.82,227.78,2.1947]
[1734034783526,2.1944,227.81,227.77,2.1948]
[1734034784611,4.3997,227.87,227.76,2.68]
[1734034784815,4.3997,227.87,227.73,2.1009]
[1734034784816,10.17851325,227.85,227.73,2.1009]
[1734034785211,2.1944,227.82,227.74,2.195]
[1734034785516,10.17851325,227.85,227.74,2.195]
[1734034787913,4.3997,227.87,227.74,2.195]
[1734034787914,2.1947,227.79,227.74,2.195]
[1734034788322,2.1947,227.79,227.73,2.1009]
[1734034788619,2.2085,227.86,227.75,10.17851325]
[1734034788620,2.1945,227.81,227.75,10.17851325]
[1734034788820,2.2609,227.87,227.78,10.17851325]
[1734034789026,95.34611,227.89,227.78,12.85851325]
[1734034789217,2.1941,227.85,227.78,12.85851325]
[1734034789614,95.34611,227.89,227.78,12.85851325]
[1734034789921,2.194,227.86,227.78,12.85851325]
[1734034790319,2.194,227.86,227.81,2.1944]
[1734034790519,2.194,227.86,227.78,12.85851325]
[1734034791121,95.34611,227.89,227.78,12.85851325]
[1734034791424,2.194,227.85,227.78,12.85851325]
[1734034791819,2.194,227.85,227.8,2.1944]
[1734034792015,95.34611,227.89,227.78,12.85851325]
[1734034792524,2.1939,227.87,227.83,2.1942]
[1734034793022,2.194,227.86,227.83,2.1942]
[1734034793225,2.194,227.86,227.82,2.1943]
[1734034794117,2.194,227.86,227.83,2.1942]
[1734034794316,95.34611,227.89,227.84,10.17851325]
[1734034794722,95.34611,227.89,227.86,2.1939]
[1734034795617,95.34611,227.89,227.85,2.68]
[1734034795618,95.34611,227.89,227.87,2.1938]
[1734034796125,95.34611,227.89,227.85,2.68]
[1734034796820,4.4527,228.01,227.87,10.17851325]
[1734034797025,4.4527,228.01,227.85,2.68]
[1734034797026,0.68184321,228.0,227.91,10.17851325]
[1734034797227,0.68184321,228.0,227.92,2.68]
[1734034797424,4.4527,228.01,227.92,2.68]
[1734034797725,0.6818598,227.99,227.92,2.68]
[1734034798429,2.8746598,227.99,227.94,2.1932]
[1734034798727,0.6818598,227.99,227.94,2.1932]
[1734034798918,2.8745598,227.99,227.94,2.1932]
[1734034799117,2.8745598,227.99,227.92,2.68]
[1734034799318,2.1927,227.99,227.95,2.1931]
[1734034799526,4.4527,228.01,227.92,2.68]
[1734034800328,2.1349,228.06,227.94,10.17851325]
[1734034800822,0.68207742,228.05,227.97,10.17851325]
[1734034801027,1.36421481,228.05,227.98,2.68]
[1734034801220,0.68207742,228.05,227.98,2.68]
[1734034801428,0.68207742,228.05,228.0,10.17851325]
[1734034801626,0.68207742,228.05,227.98,2.68]
[1734034802220,2.1923,228.03,227.99,2.1927]
[1734034802620,0.68207742,228.05,227.99,2.1927]
[1734034803523,0.68207742,228.05,227.98,2.68]
[1734034803524,0.68207742,228.05,228.0,10.17851325]
[1734034803722,0.68207742,228.05,228.03,10.17851325]
[1734034803919,2.87427742,228.05,228.0,10.17851325]
[1734034804120,2.87427742,228.05,227.95,4.1751]
[1734034804121,0.68207742,228.05,228.01,2.68]
[1734034804625,0.68207742,228.05,227.94,5.21501998]
[1734034804827,14.57061325,228.04,227.94,5.21501998]
[1734034805026,14.57061325,228.04,227.94,2.68]
[1734034805228,2.2084,228.03,227.94,2.68]
[1734034805926,2.89067669,228.03,227.94,2.68]
[1734034806130,2.2084,228.03,227.94,2.68]
[1734034806425,2.1929,227.97,227.94,2.68]
[1734034807325,2.1929,227.97,227.88,4.1269]
[1734034807326,10.17851325,228.01,227.88,10.17851325]
[1734034807530,10.17851325,228.01,227.89,2.68]
[1734034808227,2.2084,228.03,227.89,2.68]
[1734034808622,2.2084,228.03,227.94,10.17851325]
[1734034808830,2.2084,228.03,227.97,10.17851325]
[1734034809031,2.1924,228.03,227.97,10.17851325]
[1734034809234,0.68207742,228.05,227.97,10.17851325]
[1734034809436,0.68207742,228.05,227.95,2.68]
[1734034809636,2.1926,228.0,227.95,2.68]
[1734034809936,0.68207742,228.05,227.95,2.68]
[1734034810236,2.1925,228.01,227.95,2.68]
[1734034810836,0.68207742,228.05,227.95,2.68]
[1734034811432,0.68207742,228.05,227.99,2.1926]
[1734034812033,2.1923,228.04,227.99,2.1926]
[1734034812237,0.68207742,228.05,227.98,2.1928]
[1734034812440,2.1926,228.0,227.94,10.17851325]
[1734034812638,10.17851325,228.07,227.95,2.68]
[1734034812831,10.17851325,228.07,227.91,10.17851325]
[1734034813040,10.17851325,228.04,227.92,2.68]
[1734034813636,10.17851325,228.04,227.93,2.68]
[1734034814041,10.17851325,228.04,227.93,8.0190001]
[1734034814241,10.17851325,228.04,227.93,5.3390001]
[1734034814539,10.17851325,228.04,227.93,2.68]
[1734034815041,2.1934,227.93,227.91,2.68]
[1734034815438,10.17851325,228.04,227.91,2.68]
[1734034816732,2.1932,227.94,227.91,2.68]
[1734034816936,10.17851325,228.01,227.88,10.17851325]
[1734034817134,10.17851325,227.98,227.84,10.17851325]
[1734034817337,10.17851325,227.98,227.85,4.874]
[1734034817540,10.17851325,227.98,227.85,2.68]
[1734034818738,2.1936,227.91,227.86,2.1939]
[1734034819337,2.1931,227.95,227.86,2.1939]
[1734034819544,10.17851325,227.98,227.86,2.1939]
[1734034819940,2.1936,227.91,227.86,2.1939]
[1734034820146,10.17851325,227.95,227.79,6.09462488]
[1734034820441,12.83851325,227.95,227.79,12.83851325]
[1734034820641,2.1944,227.82,227.8,2.66]
[1734034820842,2.1944,227.82,227.73,4.0348]
[1734034820843,10.17851325,227.89,227.76,10.17851325]
[1734034821039,4.2302,227.88,227.76,10.17851325]
[1734034822846,2.1945,227.81,227.75,10.1749194]
[1734034823345,4.2302,227.88,227.75,10.1749194]
[1734034823546,4.2302,227.88,227.76,12.37341325]
[1734034823746,4.2302,227.88,227.77,2.66]
[1734034824850,2.1945,227.8,227.77,2.66]
[1734034825149,4.2302,227.88,227.77,2.66]
[1734034825150,6.8902,227.88,227.77,2.66]
[1734034825344,2.1947,227.78,227.77,2.66]
[1734034825642,2.66,227.82,227.74,5.37706434]
[1734034825849,10.17851325,227.8,227.67,10.17851325]
[1734034826049,10.17851325,227.8,227.64,10.17851325]
[1734034826349,2.92065864,227.79,227.64,12.37451325]
[1734034826549,2.92065864,227.79,227.65,5.3217339]
[1734034826740,2.1346,227.78,227.65,5.3217339]
[1734034827644,2.1346,227.78,227.67,10.17851325]
[1734034827844,2.1346,227.78,227.68,2.66]
[1734034828741,2.2441,227.81,227.73,10.17851325]
[1734034828945,2.2441,227.81,227.76,10.17851325]
[1734034829153,2.2441,227.81,227.74,2.66]
[1734034829748,2.1945,227.8,227.74,4.855]
[1734034829940,2.2441,227.81,227.74,2.66]
[1734034830341,2.1942,227.84,227.76,12.37341325]
[1734034830543,2.2206,227.88,227.76,10.17851325]
[1734034831049,2.2206,227.88,227.74,2.66]
[1734034831050,2.2206,227.88,227.79,10.17851325]
[1734034831351,2.2206,227.88,227.8,2.66]
[1734034831749,2.1943,227.83,227.8,2.66]
[1734034832953,2.1943,227.82,227.8,2.66]
[1734034833746,2.2206,227.88,227.8,2.66]
[1734034835953,2.1944,227.82,227.8,2.66]
[1734034836648,2.1946,227.8,227.76,10.17851325]
[1734034837456,2.2206,227.88,227.76,10.17851325]
[1734034838657,2.1942,227.84,227.79,2.1946]
[1734034840058,2.2206,227.88,227.79,2.1946]
[1734034840353,2.1943,227.83,227.79,2.1946]
[1734034841652,2.2206,227.88,227.82,10.17851325]
[1734034841858,2.2206,227.88,227.82,12.83851325]
[1734034842058,12.83851325,227.96,227.82,12.83851325]
[1734034842355,12.83851325,227.96,227.85,10.17851325]
[1734034842356,2.66,227.96,227.85,10.17851325]
[1734034842551,0.68525865,227.95,227.85,10.17851325]
[1734034842962,2.66,227.96,227.85,10.17851325]
[1734034843156,4.4954,227.98,227.85,10.17851325]
[1734034843358,0.68537179,227.97,227.85,10.17851325]
[1734034843858,0.68537179,227.97,227.88,10.17851325]
[1734034844060,2.1933,227.93,227.89,2.1936]
[1734034844261,4.4954,227.98,227.88,12.83851325]
[1734034845363,2.9651,227.98,227.91,10.17851325]
[1734034845957,1.4664,227.98,227.91,10.17851325]
[1734034846161,1.5492,228.04,227.91,10.17851325]
[1734034846358,1.5492,228.04,227.94,10.17851325]
[1734034846559,10.17851325,228.02,227.95,2.66]
[1734034846867,10.17851325,228.02,227.91,2.66]
[1734034847260,0.68688102,228.01,227.91,2.66]
[1734034847565,10.17851325,228.02,227.91,2.66]
[1734034848058,0.68691673,228.01,227.91,2.66]
[1734034849467,2.1934,227.92,227.88,10.17851325]
[1734034849666,2.1934,227.92,227.89,2.66]
[1734034849866,10.17851325,228.02,227.89,2.66]
[1734034849867,2.1933,227.94,227.89,2.66]
[1734034850369,10.17851325,228.02,227.89,2.66]
[1734034850370,2.1931,227.96,227.9,2.1936]
[1734034851670,10.17851325,228.02,227.9,2.1936]
[1734034852168,2.1931,227.95,227.9,2.1936]
[1734034852364,2.1931,227.95,227.89,7.8609547]
[1734034852665,4.2092,228.04,227.91,12.37191325]
[1734034852666,1.5492,228.04,227.91,12.37191325]
[1734034853064,0.68813917,228.03,227.91,12.37191325]
[1734034854366,1.5492,228.04,227.91,12.37191325]
[1734034854367,2.1931,227.95,227.91,12.37191325]
[1734034856670,1.5492,228.04,227.91,10.17851325]
[1734034856868,1.5492,228.04,227.94,10.17851325]
[1734034857169,2.1926,228.0,227.96,2.1929]
[1734034858670,1.5492,228.04,227.95,2.66]
[1734034859065,1.5492,228.04,227.93,2.66]
[1734034859766,0.68715448,228.03,227.93,2.66]
[1734034860867,1.5492,228.04,227.93,2.66]
[1734034861471,0.68701342,228.03,227.93,2.66]
[1734034861668,10.17851325,228.02,227.89,5.2009547]
[1734034861867,12.83851325,228.02,227.88,2.66]
[1734034862066,0.68701342,228.01,227.88,2.66]
[1734034862369,2.1936,227.9,227.88,2.66]
[1734034862966,2.1936,227.9,227.86,2.1939]
[1734034863162,2.1936,227.9,227.87,2.66]
[1734034863667,2.1935,227.92,227.88,10.17851325]
[1734034863871,1.4039,227.99,227.88,10.17851325]
[1734034864667,2.1933,227.93,227.89,2.1936]
[1734034865769,1.4039,227.99,227.88,12.37221325]
[1734034865965,1.4039,227.99,227.88,10.17851325]
[1734034866471,0.68844854,227.98,227.88,10.17851325]
[1734034866972,0.68844854,227.98,227.88,12.83851325]
[1734034867177,2.1935,227.91,227.88,12.83851325]
[1734034867469,1.4039,227.99,227.88,12.83851325]
[1734034868373,1.4039,227.99,227.88,15.03231325]
[1734034869472,1.4039,227.99,227.91,10.17851325]
[1734034870581,2.1931,227.96,227.92,2.1933]
[1734034870969,1.4039,227.99,227.88,12.83851325]
[1734034871673,11.58241325,227.99,227.88,2.66]
[1734034872070,0.68789799,227.98,227.87,2.66]
[1734034872572,10.17851325,227.96,227.85,2.66]
[1734034872977,1.4138,227.95,227.85,2.66]
[1734034873179,12.28021124,227.95,227.85,2.66]
[1734034873775,0.68789799,227.94,227.85,2.66]
[1734034874174,10.17851325,227.92,227.77,10.17851325]
[1734034874378,10.17851325,227.92,227.78,2.66]
[1734034874781,2.20638276,227.91,227.78,2.66]
[1734034874977,0.68798276,227.9,227.79,5.27742697]
[1734034875174,2.1939,227.87,227.79,5.27742697]
[1734034875380,1.5069,227.9,227.79,5.27742697]
[1734034875680,10.86570522,227.89,227.78,2.66]
[1734034876270,0.68719197,227.88,227.76,2.66]
[1734034876775,0.68719197,227.88,227.77,2.66]
[1734034877073,1.5069,227.9,227.8,10.17851325]
[1734034877479,1.5069,227.9,227.78,2.1947]
[1734034877682,1.5069,227.9,227.77,12.83851325]
[1734034878282,1.5069,227.9,227.79,2.1946]
[1734034878481,1.5069,227.9,227.77,12.83851325]
[1734034879074,2.1941,227.84,227.8,2.1945]
[1734034879383,0.68603074,227.89,227.77,12.83851325]
[1734034879681,2.1945,227.81,227.78,2.66]
[1734034879873,10.17851325,227.89,227.78,2.66]
[1734034880279,2.1946,227.79,227.78,2.66]
[1734034880478,2.66,227.88,227.74,12.83851325]
[1734034880683,2.1948,227.77,227.74,10.17851325]
[1734034880879,2.66,227.88,227.74,12.83851325]
[1734034881080,1.5069,227.9,227.77,10.17851325]
[1734034881785,1.5069,227.9,227.8,2.1945]
[1734034881984,1.5069,227.9,227.81,2.66]
[1734034882279,10.17851325,227.87,227.76,2.66]
[1734034882480,2.195,227.75,227.71,10.17851325]
[1734034882685,10.17851325,227.84,227.71,12.83851325]
[1734034882978,10.17851325,227.84,227.71,10.17851325]
[1734034883180,10.17851325,227.84,227.72,2.66]
[1734034883584,2.195,227.75,227.72,2.66]
[1734034884173,2.1952,227.74,227.72,2.66]
[1734034884373,2.1952,227.74,227.65,1.3478]
[1734034884374,10.17851325,227.81,227.66,10.17851325]
[1734034884582,4.1781,227.8,227.66,10.17851325]
[1734034884780,2.1953,227.73,227.67,2.1958]
[1734034884976,2.1953,227.73,227.66,10.17851325]
[1734034884977,5.6482,227.8,227.66,10.17851325]
[1734034885380,2.1954,227.72,227.66,12.37441325]
[1734034885585,2.1954,227.72,227.66,10.17851325]
[1734034886081,5.6482,227.8,227.66,10.17851325]
[1734034886483,5.6482,227.8,227.65,7.94735486]
[1734034886484,5.6482,227.8,227.69,10.17851325]
[1734034886683,2.195,227.76,227.7,2.1955]
[1734034886887,1.4701,227.8,227.71,2.66]
[1734034887782,2.1949,227.76,227.72,2.1953]
[1734034887979,1.4701,227.8,227.71,2.66]
[1734034888286,2.195,227.75,227.71,2.66]
[1734034888484,1.4701,227.8,227.71,2.66]
[1734034888685,12.83851325,227.84,227.71,2.66]
[1734034888886,12.83851325,227.84,227.73,2.1952]
[1734034889385,10.17851325,227.84,227.73,2.1952]
[1734034890088,10.17851325,227.84,227.71,2.66]
[1734034890389,2.1949,227.77,227.71,2.66]
[1734034890588,10.17851325,227.84,227.71,2.66]
[1734034890788,10.17851325,227.81,227.71,2.66]
[1734034891080,10.17851325,227.81,227.66,10.17851325]
[1734034891081,10.17851325,227.81,227.67,2.66]
[1734034891987,2.1955,227.71,227.67,2.66]
[1734034892885,1.4253,227.79,227.67,2.66]
[1734034893082,2.1955,227.7,227.66,12.37431325]
[1734034893387,10.17851325,227.75,227.65,5.28735486]
[1734034893582,2.1957,227.69,227.65,5.28735486]
[1734034893988,2.1957,227.69,227.65,7.48325486]
[1734034894791,2.1957,227.68,227.64,2.66]
[1734034895285,10.17851325,227.75,227.62,6.75194883]
[1734034895593,10.17851325,227.72,227.62,5.31094883]
[1734034895995,10.17851325,227.72,227.58,2.1966]
[1734034895996,2.1961,227.64,227.58,2.1966]
[1734034896493,2.1961,227.64,227.57,10.17851325]
[1734034896895,2.1961,227.64,227.57,15.35098246]
[1734034897194,2.1962,227.63,227.57,15.35098246]
[1734034897390,10.17851325,227.72,227.57,15.35098246]
[1734034897888,10.17851325,227.72,227.58,2.1966]
[1734034897889,2.1962,227.63,227.58,2.1966]
[1734034898095,10.17851325,227.72,227.58,2.1966]
[1734034898294,2.1965,227.6,227.57,10.17851325]
[1734034898491,10.17851325,227.69,227.56,2.66]
[1734034898798,2.1968,227.57,227.54,2.66]
[1734034899099,2.1968,227.57,227.53,2.66]
[1734034899594,1.4785,227.65,227.53,4.8571]
[1734034899796,1.4785,227.65,227.53,2.66]
[1734034900796,1.4785,227.65,227.54,5.27953527]
[1734034901399,2.1967,227.58,227.54,5.27953527]
[1734034901592,10.17851325,227.63,227.53,2.66]
[1734034901792,10.17851325,227.63,227.48,10.17851325]
[1734034902095,10.17851325,227.6,227.49,2.66]
[1734034903006,2.66,227.61,227.52,2.1972]
[1734034903203,2.66,227.61,227.49,2.66]
[1734034903515,2.197,227.55,227.49,4.8574]
[1734034904009,2.197,227.55,227.49,2.66]
[1734034904308,10.17851325,227.6,227.49,2.66]
[1734034905403,2.1972,227.52,227.48,2.1975]
[1734034905611,2.1972,227.52,227.48,4.8575]
[1734034906604,2.1971,227.53,227.48,4.8575]
[1734034906909,10.17851325,227.6,227.48,2.66]
[1734034907104,2.1971,227.54,227.48,2.66]
[1734034907402,10.17851325,227.6,227.48,2.66]
[1734034907600,10.17851325,227.6,227.48,2.1975]
[1734034907799,10.17851325,227.6,227.47,2.66]
[1734034908004,2.66,227.61,227.43,16.22793146]
[1734034908005,10.17851325,227.57,227.43,2.198]
[1734034908201,2.1977,227.47,227.42,2.66]
[1734034908402,10.17851325,227.54,227.42,2.66]
[1734034909208,10.17851325,227.54,227.42,8.02059332]
[1734034909409,10.17851325,227.54,227.43,2.1981]
[1734034909612,10.17851325,227.54,227.42,8.02059332]
[1734034911710,2.1976,227.49,227.44,2.198]
[1734034911910,10.17851325,227.54,227.44,2.198]
[1734034912106,10.17851325,227.54,227.42,18.19910657]
[1734034912306,1.4565,227.56,227.46,2.1977]
[1734034913412,1.4565,227.56,227.42,18.19910657]
[1734034914120,2.1973,227.51,227.46,2.1977]
[1734034914417,2.1973,227.51,227.42,18.19910657]
[1734034914618,2.1973,227.51,227.47,2.1977]
[1734034915713,2.1974,227.5,227.46,2.1978]
[1734034915914,1.4565,227.56,227.42,18.19910657]
[1734034916418,2.1974,227.51,227.46,2.1978]
[1734034916720,2.1974,227.51,227.42,18.19910657]
[1734034916911,2.1974,227.5,227.46,2.1977]
[1734034917811,2.1974,227.5,227.42,18.19910657]
[1734034918009,2.1973,227.52,227.47,2.1977]
[1734034918315,2.1973,227.52,227.45,10.17851325]
[1734034918511,1.4565,227.56,227.47,2.1976]
[1734034918910,1.4565,227.56,227.42,18.19910657]
[1734034919113,1.4565,227.56,227.45,2.1979]
[1734034919516,2.1972,227.53,227.45,2.1979]
[1734034919718,1.4565,227.56,227.45,2.1979]
[1734034920115,2.1976,227.49,227.45,2.1979]
[1734034920319,1.4565,227.56,227.44,2.198]
[1734034920520,10.17851325,227.54,227.42,18.19910657]
[1734034920819,12.81851325,227.54,227.41,2.1982]
[1734034921018,10.17851325,227.51,227.38,6.04941821]
[1734034921217,10.17851325,227.51,227.37,1.5068]
[1734034921419,10.17851325,227.48,227.38,5.3950675]
[1734034921619,10.17851325,227.48,227.37,2.1987]
[1734034921819,10.17851325,227.48,227.35,2.64]
[1734034922514,2.198,227.45,227.35,2.64]
[1734034922718,10.17851325,227.48,227.35,2.64]
[1734034923221,2.198,227.44,227.39,2.1985]
[1734034924317,2.9826,227.5,227.36,5.30324106]
[1734034924628,2.1982,227.43,227.39,2.1985]
[1734034924921,2.1982,227.43,227.36,5.30324106]
[1734034925123,10.17851325,227.48,227.37,2.1987]
[1734034925124,2.1984,227.41,227.37,2.1987]
[1734034925313,10.17851325,227.45,227.35,2.64]
[1734034925714,2.1985,227.39,227.35,2.64]
[1734034925918,10.17851325,227.45,227.32,10.17851325]
[1734034926117,10.17851325,227.45,227.33,2.64]
[1734034926320,10.17851325,227.42,227.31,2.1993]
[1734034926518,3.1383,227.41,227.31,2.1993]
[1734034926924,3.1383,227.41,227.3,5.160451]
[1734034927127,3.1383,227.41,227.33,2.1991]
[1734034927326,3.1383,227.41,227.3,5.160451]
[1734034927625,3.1383,227.41,227.32,2.1991]
[1734034927816,1.4479,227.41,227.3,15.33896425]